bitfinex-derivatives/quotes_ETHF0:USTF0_20251229
["timestamp","ask_amount","ask_price","bid_price","bid_amount"]
[1767046219346,0.17064,2933.6,2932.5,1.12885361]
[1767046219740,1.12885361,2934.7,2932.5,1.12885361]
[1767046220046,0.17061,2934.1,2932.5,1.12885361]
[1767046220447,0.00510673,2933.6,2933.0,0.00510673]
[1767046226249,0.17061,2934.1,2933.0,0.00510673]
[1767046227450,0.00510673,2933.8,2933.0,0.00510673]
[1767046229557,0.00510673,2933.8,2933.0,6.32810673]
[1767046233861,0.17063,2933.7,2932.2,4.27987157]
[1767046234159,0.17064,2933.6,2932.3,6.325]
[1767046234462,0.17065,2933.4,2932.3,6.325]
[1767046234961,0.17065,2933.4,2932.6,0.00510673]
[1767046235667,0.17065,2933.4,2932.0,0.00412565]
[1767046235668,0.17066,2933.3,2932.0,0.00412565]
[1767046235959,0.17066,2933.3,2932.1,6.324]
[1767046237556,0.00510673,2933.8,2932.0,0.00412565]
[1767046237763,0.17067,2933.1,2932.0,0.00412565]
[1767046249866,40.8,2933.3,2932.0,0.00412565]
[1767046250073,1.12885361,2932.6,2931.6,0.76207667]
[1767046250263,0.17068,2932.9,2931.6,0.76207667]
[1767046250465,40.97068,2932.9,2931.6,0.76207667]
[1767046250973,0.17068,2932.9,2931.6,0.76462048]
[1767046251472,40.8,2932.8,2931.6,0.76462048]
[1767046253263,0.17068,2932.9,2931.6,0.76462048]
[1767046253772,40.97068,2932.9,2931.6,0.76462048]
[1767046254174,1.12885361,2932.6,2931.6,0.76462048]
[1767046254376,40.8,2932.9,2931.6,0.76462048]
[1767046254572,0.17069,2932.6,2931.6,0.76462048]
[1767046275300,1.12933985,2933.3,2931.9,1.12933985]
[1767046275699,41.92933985,2933.3,2931.9,1.12933985]
[1767046276086,1.12933985,2933.1,2931.9,1.12933985]
[1767046277297,0.17066,2933.2,2932.1,1.12933985]
[1767046284506,0.17066,2933.1,2931.9,1.12933985]
[1767046285197,1.29999985,2933.1,2931.7,1.12933985]
[1767046287299,1.12933985,2932.7,2931.6,0.76462048]
[1767046287809,1.12933985,2932.9,2931.6,0.76462048]
[1767046288507,1.30001985,2932.9,2931.6,0.76462048]
[1767046289104,1.30001985,2932.9,2931.6,1.89396033]
[1767046289405,0.17068,2932.9,2931.6,1.89396033]
[1767046301607,0.17068,2932.9,2931.8,1.12933985]
[1767046322730,0.01,2932.4,2931.8,1.12933985]
[1767046322936,0.01,2932.4,2931.6,0.76462048]
[1767046323238,0.00511579,2932.3,2931.6,1.89396033]
[1767046325647,0.17065,2933.4,2931.9,1.12933985]
[1767046325841,1.29998985,2933.4,2931.9,1.12933985]
[1767046326040,1.12933985,2933.1,2931.6,1.89396033]
[1767046326641,1.12933985,2933.1,2932.1,0.00511579]
[1767046326840,0.00511579,2932.6,2932.1,0.00511579]
[1767046343961,0.00511579,2932.6,2931.6,0.75734728]
[1767046347164,0.17066,2933.2,2931.6,0.75734728]
[1767046348263,0.00511579,2932.7,2932.1,0.00511579]
[1767046380380,0.00511579,2932.7,2931.6,0.75734728]
[1767046380588,0.17580579,2932.7,2931.6,0.75734728]
[1767046380989,0.00511579,2932.7,2931.6,0.75734728]
[1767046381293,0.00511579,2932.7,2930.8,7.4010695]
[1767046381294,1.12915937,2932.2,2930.8,7.4010695]
[1767046381594,0.17071,2932.4,2930.8,6.272]
[1767046382094,0.17462074,2932.4,2930.8,6.27615003]
[1767046388200,1.12915937,2932.3,2930.8,0.00415003]
[1767046388699,40.8,2932.2,2930.8,0.00415003]
[1767046389398,0.17072,2932.1,2930.8,0.00415003]
[1767046389998,40.8,2932.3,2930.8,0.00415003]
[1767046390587,1.13353355,2932.4,2931.1,1.12962281]
[1767046391598,1.13353355,2932.4,2930.8,0.00415003]
[1767046391899,1.13353355,2932.4,2931.0,1.12962281]
[1767046395805,0.00391074,2932.4,2931.0,1.12962281]
[1767046395996,1.13353355,2932.4,2931.0,1.12962281]
[1767046396904,1.13353355,2932.4,2930.8,0.00415003]
[1767046396905,0.00391074,2932.4,2931.2,1.12962281]
[1767046399107,0.00391074,2932.4,2931.3,1.12962281]
[1767046399609,0.00391074,2932.4,2931.5,1.12962281]
[1767046400204,0.00391074,2932.4,2931.2,1.12962281]
[1767046400710,0.00391074,2932.4,2931.2,2.23733264]
[1767046407423,0.00391074,2932.4,2931.2,1.12962281]
[1767046410222,0.00391074,2932.4,2931.2,2.25106732]
[1767046413927,0.00391074,2932.4,2931.5,1.12962281]
[1767046414127,0.00391074,2932.4,2931.5,7.39262281]
[1767046414719,0.00391074,2932.4,2931.7,1.12962281]
[1767046415223,0.00391074,2932.4,2931.5,6.263]
[1767046415418,0.00391074,2932.4,2931.6,6.265]
[1767046420223,0.00391074,2932.4,2931.2,0.17077]
[1767046420426,0.00391074,2932.4,2931.5,6.268]
[1767046420723,0.00391074,2932.4,2931.2,0.17077]
[1767046420929,0.00391074,2932.4,2931.3,6.268]
[1767046425428,0.00391074,2932.4,2931.0,4.27987157]
[1767046425429,1.12962281,2932.2,2931.0,4.27987157]
[1767046425634,1.12962281,2932.0,2930.8,5.39169388]
[1767046425928,1.12962281,2931.8,2930.9,6.272]
[1767046427730,1.12962281,2932.0,2930.9,6.272]
[1767046431535,1.12962281,2931.8,2930.8,0.00415003]
[1767046431739,0.00391074,2932.4,2930.9,6.278]
[1767046431933,1.12962281,2931.7,2930.9,6.278]
[1767046432129,1.12962281,2931.7,2930.8,0.00415003]
[1767046432331,1.12962281,2931.7,2930.9,6.278]
[1767046433534,1.12962281,2931.7,2930.8,0.00415003]
[1767046433737,1.12962281,2931.7,2930.9,6.278]
[1767046433941,0.17073,2932.0,2930.9,6.278]
[1767046434242,1.12962281,2931.8,2930.9,6.278]
[1767046435335,1.30036281,2931.8,2930.8,6.28215003]
[1767046437242,1.30036281,2931.8,2930.8,0.00415003]
[1767046437539,1.30036281,2931.8,2930.8,6.28115003]
[1767046440847,1.30036281,2931.8,2930.8,6.28015003]
[1767046441546,0.17074,2931.8,2930.8,6.28015003]
[1767046441747,1.30036281,2931.8,2930.8,6.28015003]
[1767046447250,0.17074,2931.8,2930.8,6.28015003]
[1767046447455,0.00391074,2932.4,2931.2,1.12962281]
[1767046447948,0.17071,2932.3,2931.2,1.12962281]
[1767046448948,0.17071,2932.3,2931.4,1.12962281]
[1767046449147,0.17071,2932.3,2931.4,7.40262281]
[1767046449454,0.00511579,2932.7,2931.4,7.40262281]
[1767046450654,0.17071,2932.3,2931.4,6.273]
[1767046451658,0.00928744,2932.7,2931.4,6.273]
[1767046456968,0.17065,2933.3,2931.4,6.273]
[1767046457453,40.97065,2933.3,2931.4,6.273]
[1767046457654,40.97065,2933.3,2931.4,6.44376]
[1767046457856,40.97495389,2933.3,2932.1,0.00511579]
[1767046458054,0.00511579,2932.6,2932.1,0.00511579]
[1767046459776,40.97495389,2933.3,2932.1,0.00511579]
[1767046459978,0.17495389,2933.3,2932.1,0.00511579]
[1767046460777,0.00511579,2933.0,2932.1,0.00511579]
[1767046468084,0.17066,2933.2,2932.1,0.00511579]
[1767046469074,0.00511579,2932.9,2932.1,0.00511579]
[1767046473575,0.00430389,2933.3,2932.1,0.00511579]
[1767046475175,0.00430389,2933.3,2932.1,1.13453072]
[1767046475370,0.17063,2933.8,2932.1,1.13453072]
[1767046475781,0.00511579,2933.2,2932.1,1.13453072]
[1767046476285,0.00946849,2933.2,2932.1,1.13453072]
[1767046477682,40.8,2934.1,2932.2,0.17071]
[1767046478076,1.12941493,2933.6,2932.2,6.242]
[1767046478274,0.17063,2933.8,2932.2,6.242]
[1767046478683,0.00338032,2933.3,2932.2,6.242]
[1767046481381,0.15842015,2933.8,2932.2,6.242]
[1767046492892,0.15842015,2933.8,2932.2,7.37141493]
[1767046494196,0.00440983,2933.8,2932.4,0.1707]
[1767046496702,0.00440983,2933.8,2932.6,1.12941493]
[1767046500298,12.10741493,2934.7,2932.6,1.12941493]
[1767046500299,10.978,2934.7,2932.7,0.17069]
[1767046500497,10.978,2934.7,2933.0,1.12941493]
[1767046500700,10.978,2934.7,2933.1,6.244]
[1767046500901,0.17054,2935.3,2933.6,0.00511579]
[1767046501303,1.12941493,2935.2,2933.6,0.0079983]
[1767046501805,1.12941493,2934.8,2933.6,0.0079983]
[1767046502003,0.17058,2934.7,2933.3,6.243]
[1767046502197,0.17058,2934.7,2933.2,6.243]
[1767046502899,0.17058,2934.7,2933.2,6.24540972]
[1767046503105,0.00511579,2934.2,2933.7,0.00511579]
[1767046503399,0.17058,2934.7,2933.7,0.00511579]
[1767046508805,51.78,2935.1,2933.7,0.00511579]
[1767046509610,11.15055,2935.1,2933.7,0.00511579]
[1767046512610,1.12765185,2935.0,2933.7,0.00511579]
[1767046515711,11.15055,2935.1,2933.7,0.00511579]
[1767046516011,12.27820185,2935.1,2933.7,0.00511579]
[1767046518816,53.07820185,2935.1,2933.7,0.00511579]
[1767046519810,51.95055,2935.1,2933.9,1.12765185]
[1767046520113,0.17055,2935.1,2933.9,1.12765185]
[1767046520813,0.0029101,2935.3,2934.2,1.12765185]
[1767046521205,0.0029101,2935.3,2934.4,1.12765185]
[1767046521705,0.0029101,2935.3,2934.2,1.12765185]
[1767046527015,1.12765185,2935.0,2933.7,0.00511579]
[1767046527225,1.12765185,2934.8,2933.7,0.00511579]
[1767046528227,1.12765185,2935.0,2933.7,0.00511579]
[1767046535433,0.17055,2935.1,2933.8,1.12765185]
[1767046535827,0.0029101,2935.3,2934.2,1.12765185]
[1767046537330,0.0029101,2935.3,2934.0,1.12765185]
[1767046537925,1.12765185,2935.2,2933.8,1.12765185]
[1767046538325,1.12765185,2935.0,2933.7,0.00511579]
[1767046538531,1.12765185,2934.8,2933.7,6.21211579]
[1767046539433,1.12765185,2935.0,2933.7,6.21211579]
[1767046539831,0.0029101,2935.3,2933.7,6.21211579]
[1767046540033,1.12765185,2935.0,2933.7,6.21211579]
[1767046540535,0.0029101,2935.3,2933.8,1.12765185]
[1767046540835,1.12765185,2935.2,2933.8,1.12765185]
[1767046541837,1.12765185,2935.0,2933.7,6.21211579]
[1767046542730,1.12765185,2934.8,2933.7,6.21211579]
[1767046542928,1.12765185,2935.0,2933.7,6.21211579]
[1767046543537,1.12765185,2935.0,2933.7,7.33976764]
[1767046545638,1.12765185,2934.2,2933.7,0.00511579]
[1767046545837,1.12765185,2934.4,2933.7,0.00511579]
[1767046547743,1.12765185,2934.5,2933.7,0.00511579]
[1767046559353,0.17056,2934.9,2933.7,0.00511579]
[1767046559552,1.29821185,2934.9,2933.7,0.00511579]
[1767046568860,0.17047,2936.5,2934.8,1.12765185]
[1767046569164,0.17048,2936.3,2934.4,0.17059]
[1767046569452,1.12765185,2935.8,2934.4,1.29824185]
[1767046569661,1.12765185,2936.0,2934.6,1.12765185]
[1767046569860,1.13053436,2936.0,2934.6,1.12765185]
[1767046570064,0.00288251,2936.0,2935.1,1.12765185]
[1767046571645,0.00288251,2936.0,2935.3,1.12765185]
[1767046571853,0.00288251,2936.0,2935.3,1.13013464]
[1767046573258,0.00288251,2936.0,2935.3,0.00248279]
[1767046595466,0.00288251,2936.0,2935.0,0.00511579]
[1767046596566,0.00288251,2936.0,2935.0,0.00786276]
[1767046597670,0.17045,2936.8,2935.0,0.00786276]
[1767046597875,0.17045,2936.8,2935.2,1.12663974]
[1767046598774,0.17293279,2936.8,2935.2,1.12663974]
[1767046599076,0.00248279,2936.8,2935.2,1.12663974]
[1767046599467,0.00248279,2936.8,2935.3,4.41444532]
[1767046606779,0.00248279,2936.8,2935.3,4.58498532]
[1767046611274,0.00248279,2936.8,2935.3,8.86485689]
[1767046612784,0.00248279,2936.8,2935.6,1.12663974]
[1767046612983,0.17039,2937.8,2936.0,1.12663974]
[1767046613178,0.17039,2937.8,2936.6,0.00511579]
[1767046613673,40.8,2938.3,2936.6,0.00511579]
[1767046614181,40.97036,2938.3,2936.6,0.00511579]
[1767046615481,40.8,2938.3,2936.6,0.00511579]
[1767046615797,1.12663974,2937.7,2936.6,1.579e-05]
[1767046616886,0.0050704,2937.4,2936.6,1.579e-05]
[1767046618688,1.12663974,2937.3,2935.4,2.748]
[1767046619790,1.12663974,2937.3,2936.1,0.0051069]
[1767046625887,0.0050704,2937.4,2935.4,2.748]
[1767046625888,1.12663974,2936.9,2935.4,2.748]
[1767046626083,1.12663974,2937.3,2935.4,2.748]
[1767046626294,40.8,2937.2,2935.4,2.748]
[1767046626794,40.8,2937.2,2936.0,0.0051069]
[1767046627388,0.17043,2937.1,2936.0,0.0051069]
[1767046628587,40.8,2937.2,2935.0,4.28261854]
[1767046628588,1.29708974,2936.9,2935.0,4.28261854]
[1767046628787,0.17046,2936.7,2935.0,0.00274697]
[1767046629687,0.17046,2936.7,2935.6,6.9e-06]
[1767046631794,40.8,2936.6,2935.6,6.9e-06]
[1767046632195,40.8,2936.6,2935.0,0.00274697]
[1767046633197,40.97046,2936.6,2935.5,0.0051069]
[1767046634499,0.17047,2936.5,2935.5,0.0051069]
[1767046636000,0.17047,2936.4,2935.5,6.9e-06]
[1767046636297,0.17047,2936.4,2935.0,0.00274697]
[1767046636485,1.2971155,2936.4,2935.0,0.00274697]
[1767046637198,1.2971155,2936.4,2935.4,0.0051069]
[1767046639601,0.17048,2936.3,2935.4,0.0051069]
[1767046660622,0.17048,2936.3,2935.0,0.00274697]
[1767046661624,0.17048,2936.3,2935.4,0.00342535]
[1767046662324,1.1266455,2936.0,2935.4,0.00342535]
[1767046662624,1.1266455,2936.0,2935.0,0.00274697]
[1767046663423,0.0051069,2935.8,2935.0,0.00274697]
[1767046683050,0.0051069,2935.8,2935.1,1.1266455]
[1767046683236,0.17047,2936.4,2935.3,1.1266455]
[1767046683950,0.17047,2936.4,2935.1,1.1266455]
[1767046684150,0.0051069,2936.0,2935.5,0.0051069]
[1767046735305,0.17045,2936.8,2935.5,0.0051069]
[1767046736398,0.0051069,2936.4,2935.5,0.0051069]
[1767046740714,0.0051069,2936.4,2935.1,4.27497847]
[1767046740914,0.0051069,2936.4,2935.1,4.26497847]
[1767046741714,0.0051069,2936.4,2935.5,0.0051069]
[1767046743712,0.0051069,2936.4,2935.5,6.9e-06]
[1767046754624,0.1555769,2936.5,2935.5,6.9e-06]
[1767046755729,0.0051069,2936.3,2935.5,6.9e-06]
[1767046758219,0.0051069,2936.3,2935.5,1.12648043]
[1767046760435,6.48543,2937.1,2935.8,1.12647353]
[1767046761540,0.0051069,2936.7,2935.8,1.12647353]
[1767046773647,0.61742676,2938.0,2936.0,1.12647353]
[1767046773953,6.13011868,2940.0,2936.0,1.12647353]
[1767046773954,1.12647353,2937.7,2936.1,9.65085802]
[1767046774140,1.12647353,2937.7,2936.1,6.38447353]
[1767046774336,1.12647353,2937.7,2936.3,1.12647353]
[1767046774547,1.12647353,2937.7,2936.1,1.12647353]
[1767046774754,0.0051069,2937.2,2936.6,0.0051069]
[1767046775642,0.0051069,2937.2,2936.2,6.059]
[1767046776143,1.12647353,2936.9,2935.7,1.25919171]
[1767046776345,1.12647353,2936.9,2935.8,6.058]
[1767046776651,1.12647353,2937.1,2936.1,0.0051069]
[1767046777149,1.13158043,2937.2,2936.1,0.0051069]
[1767046777443,1.12647353,2937.0,2936.1,0.0051069]
[1767046787954,0.1755369,2937.2,2936.1,0.0051069]
[1767046788155,1.12647353,2937.1,2936.1,0.0051069]
[1767046793268,1.29690353,2937.1,2936.1,0.0051069]
[1767046794562,0.17046,2936.7,2935.4,4.29109837]
[1767046794863,0.17046,2936.6,2935.5,6.043]
[1767046795563,0.17046,2936.6,2935.8,0.0051069]
[1767046796364,1.29693353,2936.6,2935.8,0.0051069]
[1767046798361,1.12647353,2936.4,2935.8,0.0051069]
[1767046799364,1.29693353,2936.6,2935.8,0.0051069]
[1767046801872,0.17046,2936.6,2935.8,0.0051069]
[1767046819083,0.17046,2936.6,2935.3,6.04]
[1767046820284,0.17046,2936.6,2935.4,6.028]
[1767046823491,0.17046,2936.6,2935.5,6.029]
[1767046834096,0.1755369,2937.2,2935.5,6.029]
[1767046835398,0.1755369,2937.2,2935.7,1.12635967]
[1767046835595,0.0051069,2937.2,2935.7,1.12635967]
[1767046835801,0.0051069,2937.2,2935.8,4.64883182]
[1767046836003,0.17039,2937.8,2936.1,1.12635967]
[1767046836198,0.17039,2937.8,2936.2,6.041]
[1767046836998,0.0051069,2937.3,2936.7,0.0051069]
[1767046837298,0.17039,2937.8,2936.8,6.041]
[1767046838302,0.0051069,2937.6,2936.8,6.041]
[1767046839494,0.0051069,2937.6,2936.7,0.0051069]
[1767046845107,0.17041,2937.5,2935.5,1.49939298]
[1767046845298,0.17041,2937.5,2935.6,6.036]
[1767046845498,0.17041,2937.5,2935.8,1.12635967]
[1767046846101,0.17041,2937.5,2936.4,0.0051069]
[1767046846301,0.17041,2937.5,2936.4,6.0411069]
[1767046858916,0.17041,2937.5,2936.5,6.031]
[1767046870516,10.9246,2938.3,2936.5,7.41587807]
[1767046870833,0.76207667,2938.9,2937.1,0.17043]
[1767046871119,1.88843634,2938.9,2937.1,0.17281932]
[1767046871524,0.0051069,2938.3,2937.2,6.033]
[1767046872620,0.0051069,2938.3,2937.3,6.034]
[1767046874818,0.0051069,2938.3,2937.1,0.17281932]
[1767046875020,0.0051069,2938.3,2937.2,6.035]
[1767046877831,1.88843634,2938.9,2937.2,6.035]
[1767046878530,1.12479848,2938.8,2937.2,6.035]
[1767046878728,0.0051069,2938.3,2937.4,1.12479848]
[1767046879732,1.88687515,2938.9,2937.4,1.12479848]
[1767046880928,0.0051069,2938.4,2937.4,1.12479848]
[1767046884231,0.0051069,2938.4,2937.6,1.12479848]
[1767046888439,0.0051069,2938.4,2937.7,6.031]
[1767046888939,6.9e-06,2938.4,2937.7,6.031]
[1767046894944,6.9e-06,2938.4,2937.5,1.12479848]
[1767046895144,6.9e-06,2938.4,2937.6,6.037]
[1767046899047,6.9e-06,2938.4,2937.7,6.041]
[1767046900247,6.9e-06,2938.4,2937.5,1.12479848]
[1767046900450,6.9e-06,2938.4,2937.6,6.043]
[1767046903942,6.9e-06,2938.4,2937.7,6.055]
[1767046906054,6.9e-06,2938.4,2937.5,5.41589685]
[1767046906254,6.9e-06,2938.4,2937.8,6.063]
[1767046909955,6.9e-06,2938.4,2937.8,6.053]
[1767046913758,6.9e-06,2938.4,2937.7,1.12479848]
[1767046913965,6.9e-06,2938.4,2937.9,6.089]
[1767046917074,0.93240667,2938.9,2937.9,6.089]
[1767046917974,0.0051069,2938.7,2938.1,0.0051069]
[1767046922876,0.0051069,2938.7,2938.2,6.103]
[1767046926379,0.0051069,2938.7,2938.1,0.0051069]
[1767046926572,0.0051069,2938.7,2938.2,6.106]
[1767046934388,0.0051069,2938.7,2938.1,0.0051069]
[1767046934689,0.0051069,2938.7,2938.1,6.1151069]
[1767046939194,0.0270369,2938.8,2938.1,6.1151069]
[1767046939393,0.17031,2939.3,2938.1,7.23990538]
[1767046940494,0.17031,2939.3,2938.1,6.1151069]
[1767046949303,0.17031,2939.2,2938.1,0.0051069]
[1767046949502,0.17031,2939.2,2938.2,6.117]
[1767046954308,0.17031,2939.2,2938.1,0.0051069]
[1767046954499,0.17031,2939.2,2938.3,6.119]
[1767046955904,0.17031,2939.2,2938.1,0.0051069]
[1767046956107,0.17031,2939.2,2938.4,6.12]
[1767046957202,0.17031,2939.2,2938.1,0.0051069]
[1767046957408,1.12419702,2939.2,2938.2,6.12]
[1767046958409,0.17032,2939.0,2938.2,6.12]
[1767046959218,0.17032,2939.0,2938.1,0.0051069]
[1767046959509,0.17032,2939.0,2938.2,6.121]
[1767046977125,0.17032,2939.0,2938.1,0.0051069]
[1767046977331,0.17032,2939.0,2938.3,6.132]
[1767046978132,0.17032,2939.0,2938.1,0.0051069]
[1767046978329,0.17032,2939.0,2938.2,6.132]
[1767046978929,0.17032,2939.0,2938.1,0.0051069]
[1767046979124,0.17032,2939.0,2938.3,6.132]
[1767046982334,0.17032,2939.0,2938.2,6.135]
[1767046982528,0.17033,2938.9,2938.1,0.0051069]
[1767046982728,0.17033,2938.9,2938.1,6.1401069]
[1767046983734,0.17033,2938.9,2938.1,0.0051069]
[1767047020065,0.17033,2938.9,2938.2,6.146]
[1767047027563,0.16033,2938.9,2938.2,6.146]
[1767047028777,1.12459856,2938.8,2938.2,6.146]
[1767047030678,1.12459856,2938.8,2938.1,0.0051069]
[1767047037591,1.29492856,2938.8,2938.1,0.0051069]
[1767047038391,0.17033,2938.8,2938.1,0.0051069]
[1767047040396,1.29493856,2938.7,2937.6,4.29109837]
[1767047040692,1.29493856,2938.7,2937.7,6.167]
[1767047040885,1.29493856,2938.7,2937.8,6.168]
[1767047041491,40.8,2939.5,2938.0,6.9e-06]
[1767047041492,1.12970546,2938.5,2938.0,6.9e-06]
[1767047041697,1.12459856,2938.3,2937.7,6.171]
[1767047042293,1.12459856,2938.3,2937.3,4.29109837]
[1767047042486,1.12459856,2938.3,2937.4,6.172]
[1767047042693,1.12459856,2938.3,2937.5,0.0051069]
[1767047043192,1.12459856,2938.1,2937.5,6.1781069]
[1767047043493,1.29495856,2938.3,2937.5,6.1781069]
[1767047049000,1.29495856,2938.3,2937.5,0.0051069]
[1767047053103,0.17036,2938.3,2937.5,0.0051069]
[1767047053305,0.17036,2938.3,2937.7,1.12459856]
[1767047053505,0.17037,2938.3,2937.7,1.12459856]
[1767047053706,0.0051069,2938.5,2937.7,1.12459856]
[1767047053905,0.17033,2938.9,2937.9,1.12459856]
[1767047054107,0.17033,2938.9,2937.7,1.12459856]
[1767047054612,0.17033,2938.9,2937.9,1.12459856]
[1767047054800,6.9e-06,2938.7,2938.0,6.179]
[1767047058107,0.17033,2938.9,2938.1,1.12459856]
[1767047059315,1.12459856,2939.4,2938.1,1.12459856]
[1767047059714,0.17033,2938.9,2938.1,1.12459856]
[1767047060609,40.8,2939.9,2938.0,6.179]
[1767047060816,0.17029,2939.5,2938.0,6.179]
[1767047062010,0.1703,2939.4,2938.0,6.179]
[1767047071829,0.1703,2939.4,2937.7,1.12421899]
[1767047072028,0.1703,2939.4,2937.8,5.594]
[1767047073834,0.1703,2939.4,2937.7,5.41531736]
[1767047074038,0.1703,2939.4,2937.8,6.174]
[1767047074334,0.1703,2939.4,2937.9,6.174]
[1767047075033,0.1703,2939.4,2938.0,6.175]
[1767047075934,40.8,2939.9,2938.5,1.12421899]
[1767047076140,40.8,2939.9,2938.1,1.29458899]
[1767047077540,0.03,2940.0,2938.1,1.29458899]
[1767047078132,40.83,2940.0,2938.1,1.29458899]
[1767047082146,41.00026,2940.0,2938.1,0.17037]
[1767047083054,0.17027,2939.9,2938.1,0.17037]
[1767047083343,0.17028,2939.8,2938.2,6.171]
[1767047084345,0.17028,2939.8,2938.1,0.17037]
[1767047084546,0.17028,2939.8,2938.3,6.171]
[1767047085250,41.95421899,2940.0,2938.0,1.06011426]
[1767047085447,41.95421899,2940.0,2937.8,4.29109837]
[1767047085448,0.17029,2939.6,2938.1,6.17]
[1767047086948,0.17029,2939.6,2938.0,5.35976385]
[1767047087150,0.17029,2939.6,2938.2,6.17]
[1767047087650,0.17029,2939.6,2938.3,6.17]
[1767047097656,0.17029,2939.6,2938.1,4.29109837]
[1767047097844,0.17029,2939.6,2938.3,6.167]
[1767047100557,1.29452899,2939.2,2937.8,4.29109837]
[1767047101060,1.29452899,2939.2,2937.7,10.45809837]
[1767047101257,0.17031,2939.2,2937.7,4.29109837]
[1767047101457,0.17031,2939.2,2937.8,6.167]
[1767047105969,0.17032,2939.1,2937.8,6.167]
[1767047106157,0.17033,2938.8,2937.5,0.0051069]
[1767047106464,0.17033,2938.8,2937.6,6.167]
[1767047114764,0.17033,2938.8,2937.5,0.0051069]
[1767047114967,0.17033,2938.8,2937.6,6.17]
[1767047116376,0.17034,2938.7,2937.6,6.17]
[1767047122484,1.29520377,2938.7,2937.6,6.17]
[1767047123273,1.29520377,2938.7,2937.5,0.0051069]
[1767047123477,1.29520377,2938.7,2937.6,6.173]
[1767047123780,1.12486377,2938.5,2937.5,0.0051069]
[1767047124074,1.12486377,2938.5,2937.5,6.1781069]
[1767047124279,1.12486377,2938.5,2937.5,0.0051069]
[1767047124475,1.12486377,2938.5,2937.5,6.1781069]
[1767047128483,1.12486377,2938.3,2937.5,6.1781069]
[1767047151202,0.17036,2938.4,2937.5,6.1781069]
[1767047151701,0.17036,2938.4,2937.5,6.2021069]
[1767047157406,1.29522377,2938.4,2937.5,6.2021069]
[1767047161608,0.17036,2938.4,2937.5,6.2021069]
[1767047163514,0.17036,2938.4,2937.5,6.2141069]
[1767047164915,0.17036,2938.4,2937.5,6.2151069]
[1767047171023,1.12486377,2938.5,2937.5,6.2151069]
[1767047171416,1.29521377,2938.6,2937.5,6.2151069]
[1767047184535,0.17035,2938.6,2937.5,6.2151069]
[1767047187643,0.17035,2938.5,2937.5,6.2151069]
[1767047191239,0.17035,2938.5,2937.5,0.0051069]
[1767047191442,0.17035,2938.5,2937.5,6.2461069]
[1767047195843,1.12504704,2939.0,2937.5,6.2461069]
[1767047196049,1.12504704,2938.6,2937.5,0.0051069]
[1767047196345,1.12504704,2938.6,2937.5,6.2531069]
[1767047197040,1.12504704,2938.6,2937.5,0.0051069]
[1767047197442,0.17037,2938.3,2937.5,0.0051069]
[1767047206654,0.17037,2938.2,2937.5,0.0051069]
[1767047207162,1.12504704,2937.8,2937.1,4.29348769]
[1767047207352,0.1704,2937.6,2936.3,6.264]
[1767047208151,0.0051069,2937.2,2936.7,0.0051069]
[1767047208363,0.00749621,2937.2,2936.7,0.00812588]
[1767047211259,0.1704,2937.6,2936.7,0.00812588]
[1767047241381,0.17041,2937.5,2936.7,0.00812588]
[1767047241883,0.1755269,2937.4,2936.7,2.588e-05]
[1767047242983,0.1781567,2937.4,2936.8,0.0051069]
[1767047246485,1.30401929,2937.4,2936.8,0.0051069]
[1767047246687,1.30401929,2937.4,2936.7,2.588e-05]
[1767047247688,1.30401929,2937.4,2936.8,0.0051069]
[1767047248283,1.30401929,2937.4,2936.7,2.588e-05]
[1767047249293,1.30401929,2937.4,2936.8,0.0051069]
[1767047251591,1.30401929,2937.4,2936.7,2.588e-05]
[1767047252593,1.30401929,2937.4,2936.8,0.0051069]
[1767047253290,1.30401929,2937.4,2936.7,2.588e-05]
[1767047254390,1.30401929,2937.4,2936.8,0.0051069]
[1767047259898,0.1781567,2937.4,2936.8,0.0051069]
[1767047279120,0.1781567,2937.4,2936.7,2.588e-05]
[1767047280223,0.1781567,2937.4,2936.8,0.00340464]
[1767047283418,0.0077367,2937.4,2936.8,0.00340464]
[1767047288730,0.0077367,2937.4,2936.3,4.27915256]
[1767047288731,1.12586259,2937.0,2936.3,4.27915256]
[1767047289133,1.12586259,2937.2,2936.1,4.27915256]
[1767047289731,1.12586259,2937.2,2936.1,4.28350136]
[1767047289932,1.12586259,2937.2,2936.1,0.0043488]
[1767047298338,0.17042,2937.3,2936.1,0.0043488]
[1767047298833,0.17042,2937.3,2936.1,1.13021139]
[1767047308443,0.17042,2937.3,2936.1,0.0043488]
[1767047310947,0.0077367,2937.4,2936.2,1.12573835]
[1767047311341,0.0077367,2937.4,2936.1,2.52196703]
[1767047311549,0.0077367,2937.4,2936.1,1.13008715]
[1767047313042,0.0077367,2937.4,2936.1,1.30057715]
[1767047314747,0.0077367,2937.4,2936.2,0.17048]
[1767047314951,0.17039,2937.8,2936.5,1.12573835]
[1767047315145,0.17039,2937.8,2936.2,4.50551152]
[1767047315345,0.17039,2937.8,2936.2,0.17048]
[1767047315747,0.17036,2938.4,2936.8,1.12573835]
[1767047315949,0.0051069,2937.9,2937.3,0.0051069]
[1767047317353,0.17036,2938.4,2937.3,0.0051069]
[1767047317649,0.17032,2939.0,2937.3,0.0051069]
[1767047318451,0.0051069,2938.4,2937.3,0.0051069]
[1767047343973,0.0051069,2938.4,2937.3,6.2071069]
[1767047358193,0.0051069,2938.4,2937.3,0.0051069]
[1767047358390,0.0051069,2938.4,2937.3,6.2561069]
[1767047359393,0.1754669,2938.4,2937.3,6.2561069]
[1767047370502,1.30057956,2938.4,2937.3,6.2561069]
[1767047379607,1.13021956,2938.4,2937.3,0.0051069]
[1767047379910,1.12511266,2938.2,2937.3,0.0051069]
[1767047401336,1.29548266,2938.2,2937.3,0.0051069]
[1767047401834,1.12511266,2938.0,2937.3,0.0051069]
[1767047402035,1.12511266,2938.0,2936.8,1.36206939]
[1767047402235,1.12511266,2938.0,2937.0,6.397]
[1767047402434,1.12511266,2937.8,2937.0,6.397]
[1767047402731,1.12511266,2937.6,2936.9,6.399]
[1767047403037,1.12511266,2937.6,2937.0,0.0051069]
[1767047403839,1.12511266,2937.2,2936.4,1.45497201]
[1767047404033,1.12511266,2937.2,2936.5,6.402]
[1767047404234,1.12511266,2937.4,2936.5,6.402]
[1767047404635,1.12511266,2937.5,2936.5,6.402]
[1767047410345,0.1704,2937.6,2936.5,6.402]
[1767047413140,0.1704,2937.6,2936.5,9.00626116]
[1767047413448,1.29548266,2938.2,2936.9,1.12511266]